bitfinex/quotes_SOLUSD_20250422
["timestamp","ask_amount","ask_price","bid_price","bid_amount"]
[1745360615682,22.52995082,147.96,147.91,22.52995082]
[1745360615982,22.52995082,147.96,147.89,26.0]
[1745360616176,22.52995082,147.96,147.91,22.52995082]
[1745360616390,6.75904021,147.95,147.91,22.52995082]
[1745360617075,6.75904021,147.95,147.84,0.063]
[1745360617076,26.0,147.89,147.84,0.063]
[1745360617270,22.52995082,147.86,147.84,0.063]
[1745360617489,22.52995082,147.85,147.84,0.063]
[1745360617870,48.52995082,147.85,147.84,0.063]
[1745360618600,26.0,147.85,147.84,0.063]
[1745360619487,22.52995082,147.87,147.84,0.063]
[1745360619678,48.52995082,147.87,147.84,0.063]
[1745360620498,22.52995082,147.86,147.84,0.063]
[1745360621295,48.52995082,147.86,147.84,0.063]
[1745360621797,48.52995082,147.88,147.84,0.063]
[1745360621995,26.0,147.88,147.84,0.063]
[1745360622172,26.0,147.88,147.84,22.59295082]
[1745360622496,29.2913709,147.9,147.85,22.52995082]
[1745360622689,22.52995082,147.94,147.88,22.52995082]
[1745360622899,6.75910689,147.95,147.9,22.52995082]
[1745360623197,25.40875575,147.95,147.91,22.52995082]
[1745360623398,73.93870657,147.95,147.9,22.52995082]
[1745360623578,73.93870657,147.95,147.91,22.52995082]
[1745360623579,26.0,147.95,147.91,22.52995082]
[1745360623994,22.52995082,147.96,147.91,22.52995082]
[1745360624279,22.52995082,147.96,147.9,22.52995082]
[1745360624479,6.75865937,147.96,147.92,22.52995082]
[1745360625104,26.0,147.95,147.92,22.52995082]
[1745360625402,26.0,147.93,147.85,26.0]
[1745360625583,48.52995082,147.93,147.87,22.52995082]
[1745360625783,22.52995082,147.91,147.86,22.52995082]
[1745360626106,22.52995082,147.91,147.85,22.52995082]
[1745360626681,6.76132521,147.9,147.85,22.52995082]
[1745360627084,6.76132521,147.9,147.84,8.0349]
[1745360627383,55.29127603,147.9,147.85,22.52995082]
[1745360627582,32.76132521,147.9,147.85,22.52995082]
[1745360628103,22.52995082,147.88,147.84,0.063]
[1745360628812,55.29127603,147.9,147.85,22.52995082]
[1745360630607,22.52995082,147.89,147.84,22.59295082]
[1745360631415,55.291431,147.9,147.85,22.52995082]
[1745360631712,6.76048861,147.92,147.86,22.52995082]
[1745360632007,22.52995082,147.91,147.86,22.52995082]
[1745360632208,48.52995082,147.91,147.86,22.52995082]
[1745360632416,29.29043943,147.92,147.86,22.52995082]
[1745360632794,55.29043943,147.92,147.86,22.52995082]
[1745360633004,55.29043943,147.92,147.87,22.52995082]
[1745360633183,6.75812664,147.97,147.91,22.52995082]
[1745360633385,18.64964886,147.96,147.92,22.52995082]
[1745360633588,26.0,147.95,147.91,22.52995082]
[1745360634008,22.52995082,147.96,147.91,22.52995082]
[1745360634177,22.52995082,147.96,147.85,26.0]
[1745360634382,29.28869733,147.96,147.9,22.52995082]
[1745360634578,29.28869733,147.96,147.91,22.52995082]
[1745360634882,26.0,147.95,147.91,22.52995082]
[1745360635104,48.52995082,147.95,147.9,22.52995082]
[1745360635321,22.52995082,147.94,147.89,22.52995082]
[1745360636406,55.28967481,147.94,147.89,22.52995082]
[1745360636710,22.52995082,147.92,147.86,22.52995082]
[1745360636933,22.52995082,147.9,147.85,22.52995082]
[1745360637107,22.52995082,147.89,147.84,0.063]
[1745360637407,22.52995082,147.88,147.84,0.063]
[1745360637714,18.64964886,147.9,147.85,22.52995082]
[1745360637903,41.17959968,147.9,147.85,22.52995082]
[1745360638087,22.52995082,147.89,147.84,22.59295082]
[1745360638585,29.29185413,147.89,147.84,22.59295082]
[1745360639500,29.29185413,147.89,147.84,0.063]
[1745360639707,29.29185413,147.89,147.84,22.59295082]
[1745360639904,22.52995082,147.89,147.84,22.59295082]
[1745360640204,47.94110536,147.9,147.85,22.52995082]
[1745360640510,22.52995082,147.89,147.84,22.59295082]
[1745360640688,26.0,147.91,147.87,22.52995082]
[1745360641007,18.57850526,147.98,147.9,22.52995082]
[1745360641306,6.75812664,147.97,147.92,22.52995082]
[1745360641603,26.0,147.94,147.9,22.52995082]
[1745360641783,22.52995082,147.96,147.9,22.52995082]
[1745360641991,22.52995082,147.95,147.9,22.52995082]
[1745360642396,48.52995082,147.95,147.9,22.52995082]
[1745360642607,32.75932487,147.95,147.9,22.52995082]
[1745360642812,32.75932487,147.95,147.91,22.52995082]
[1745360643013,32.75932487,147.95,147.9,22.52995082]
[1745360643914,32.75932487,147.95,147.91,22.52995082]
[1745360644505,26.0,147.95,147.91,22.52995082]
[1745360644710,0.063,147.98,147.94,22.52995082]
[1745360645016,0.063,147.98,147.95,22.52995082]
[1745360645209,0.063,147.98,147.96,22.52995082]
[1745360646821,0.063,147.98,147.91,22.52995082]
[1745360647024,0.063,147.98,147.95,22.52995082]
[1745360647614,0.063,147.98,147.97,22.52995082]
[1745360647815,0.063,147.98,147.97,52.84430164]
[1745360648116,0.063,148.01,147.97,52.84430164]
[1745360648320,0.063,148.01,148.0,48.52995082]
[1745360648703,0.063,148.01,148.0,76.35907894]
[1745360649127,0.063,148.06,148.03,26.0]
[1745360649303,0.063,148.06,148.03,89.7095505]
[1745360649503,0.063,148.06,148.05,45.05990164]
[1745360650299,0.063,148.06,148.05,22.52995082]
[1745360650916,0.063,148.06,148.03,24.34]
[1745360651324,0.063,148.06,148.05,22.52995082]
[1745360651499,0.063,148.06,148.05,45.05990164]
[1745360652407,0.063,148.06,148.05,51.35700164]
[1745360653032,0.063,148.1,148.05,86.99112546]
[1745360653222,0.063,148.1,148.09,22.52995082]
[1745360654402,0.063,148.1,148.09,41.17959968]
[1745360654611,0.063,148.12,148.09,63.7095505]
[1745360654916,0.063,148.12,148.11,22.52995082]
[1745360657207,0.063,148.13,148.11,87.8895505]
[1745360657405,0.063,148.16,148.12,71.05990164]
[1745360657724,0.063,148.16,148.15,22.52995082]
[1745360658602,0.063,148.16,148.15,48.52995082]
[1745360659030,0.03,148.19,148.15,67.17959968]
[1745360659213,0.03,148.19,148.18,22.52995082]
[1745360661330,0.03,148.19,148.17,22.52995082]
[1745360661717,0.03,148.19,148.18,22.52995082]
[1745360662541,0.03,148.19,148.16,22.52995082]
[1745360662838,22.52995082,148.18,148.11,24.18]
[1745360663016,22.52995082,148.14,148.11,24.18]
[1745360663331,6.74946004,148.16,148.1,22.52995082]
[1745360663501,29.27941086,148.16,148.11,22.52995082]
[1745360664126,22.52995082,148.15,148.1,22.52995082]
[1745360664336,29.27941086,148.16,148.1,22.52995082]
[1745360664534,22.52995082,148.15,148.06,32.2137]
[1745360664843,22.52995082,148.13,148.07,22.52995082]
[1745360665017,22.52995082,148.13,148.08,22.52995082]
[1745360665213,6.7507377,148.14,148.08,22.52995082]
[1745360665214,29.28068852,148.14,148.08,22.52995082]
[1745360665912,22.52995082,148.13,148.08,22.52995082]
[1745360666106,6.7507377,148.14,148.08,22.52995082]
[1745360666312,22.52995082,148.13,148.08,22.52995082]
[1745360666910,22.52995082,148.13,148.07,22.52995082]
[1745360667110,6.75128274,148.12,148.07,22.52995082]
[1745360667407,22.52995082,148.1,148.05,24.16]
[1745360667633,22.52995082,148.07,148.03,0.03]
[1745360667941,18.64964886,148.09,148.03,0.03]
[1745360668239,22.52995082,148.05,148.03,0.03]
[1745360668536,22.52995082,148.04,148.03,0.03]
[1745360668743,67.17959968,148.04,148.03,0.03]
[1745360669043,73.93453077,148.04,148.03,0.03]
[1745360669242,47.93453077,148.04,148.03,0.03]
[1745360671837,44.64964886,148.0,147.91,22.52995082]
[1745360672034,22.52995082,147.96,147.89,6.1993]
[1745360672220,22.52995082,147.96,147.87,25.799]
[1745360672534,44.64964886,148.0,147.87,25.799]
[1745360672535,44.64964886,148.0,147.93,22.52995082]
[1745360672737,22.52995082,147.99,147.94,22.52995082]
[1745360673434,1.6089,148.01,147.95,22.52995082]
[1745360673739,41.17959968,148.01,147.96,22.52995082]
[1745360674416,41.17959968,148.01,147.95,22.52995082]
[1745360674614,22.52995082,148.01,147.95,22.52995082]
[1745360675124,22.52995082,148.0,147.95,22.52995082]
[1745360675419,41.17959968,148.01,147.95,22.52995082]
[1745360675615,12.9566539,148.05,147.98,22.52995082]
[1745360675830,22.52995082,148.06,148.01,22.52995082]
[1745360676144,23.0844548,148.09,147.98,22.52995082]
[1745360676145,6.75351983,148.08,147.98,22.52995082]
[1745360676343,6.75351983,148.08,148.03,22.52995082]
[1745360676344,22.52995082,148.08,148.03,22.52995082]
[1745360676521,18.64964886,148.08,148.04,22.52995082]
[1745360676840,48.52995082,148.09,148.04,22.52995082]
[1745360677343,22.52995082,148.08,148.03,22.52995082]
[1745360677754,18.64964886,148.06,147.98,22.52995082]
[1745360677919,22.52995082,148.06,148.0,22.52995082]
[1745360678119,18.64964886,148.07,148.01,22.52995082]
[1745360678345,48.52995082,148.06,148.01,22.52995082]
[1745360679148,22.52995082,148.05,148.0,22.52995082]
[1745360679730,22.52995082,148.04,147.99,22.52995082]
[1745360681618,22.52995082,148.0,147.95,24.18]
[1745360681833,22.52995082,147.98,147.93,22.52995082]
[1745360682152,18.64964886,148.02,147.97,22.52995082]
[1745360682319,41.17959968,148.02,147.97,22.52995082]
[1745360683344,48.52995082,148.03,147.92,25.41005989]
[1745360683524,26.0,148.03,147.99,22.52995082]
[1745360684424,18.64964886,148.04,147.99,22.52995082]
[1745360684743,26.0,148.05,148.01,22.52995082]
[1745360684925,26.0,148.05,147.95,26.0]
[1745360685120,26.0,148.05,148.0,22.52995082]
[1745360685625,26.0,148.05,148.01,22.52995082]
[1745360685826,26.0,148.05,148.02,22.52995082]
[1745360686131,26.0,148.05,148.01,22.52995082]
[1745360686620,18.71264886,148.1,148.04,22.52995082]
[1745360686941,47.99480308,148.1,148.05,22.52995082]
[1745360687135,41.24259968,148.1,148.05,22.52995082]
[1745360687336,26.0,148.08,148.05,22.52995082]
[1745360688038,22.59295082,148.1,148.05,22.52995082]
[1745360688247,0.063,148.1,148.05,22.52995082]
[1745360688456,18.71264886,148.1,148.05,22.52995082]
[1745360688638,18.71264886,148.1,148.06,22.52995082]
[1745360688946,0.063,148.1,148.07,22.52995082]
[1745360689135,0.063,148.1,148.08,22.52995082]
[1745360690546,0.063,148.1,148.07,22.52995082]
[1745360691844,0.063,148.1,148.01,51.40579571]
[1745360692037,48.52995082,148.09,147.99,6.4673]
[1745360692232,22.52995082,148.07,147.99,13.22436397]
[1745360692548,41.17959968,148.08,148.03,22.52995082]
[1745360692730,22.52995082,148.07,147.99,32.4673]
[1745360693049,26.0,148.09,148.03,22.52995082]
[1745360693354,0.063,148.1,148.05,22.52995082]
[1745360693558,6.81519446,148.1,148.05,22.52995082]
[1745360693758,29.34514528,148.1,148.05,22.52995082]
[1745360694048,22.59295082,148.1,148.05,22.52995082]
[1745360694247,0.063,148.1,148.06,22.52995082]
[1745360695448,0.063,148.1,148.05,22.52995082]
[1745360695643,0.063,148.1,148.06,22.52995082]
[1745360696537,0.063,148.1,148.05,22.52995082]
[1745360696938,54.84474003,148.11,148.05,22.52995082]
[1745360697152,18.53608357,148.15,148.09,22.52995082]
[1745360697153,6.75094033,148.13,148.09,22.52995082]
[1745360697333,6.1639,148.16,148.05,24.15375082]
[1745360697540,12.91339005,148.16,148.12,22.52995082]
[1745360697753,12.91339005,148.16,148.11,22.52995082]
[1745360697962,35.44334087,148.16,148.11,22.52995082]
[1745360698145,6.1639,148.16,148.11,22.52995082]
[1745360698351,0.063,148.16,148.11,22.52995082]
[1745360698537,22.52995082,148.15,148.09,22.52995082]
[1745360698739,22.52995082,148.14,148.05,24.15375082]
[1745360699066,22.52995082,148.13,148.08,22.52995082]
[1745360699238,22.52995082,148.12,148.07,22.52995082]
[1745360699435,18.64964886,148.15,148.07,22.52995082]
[1745360699636,22.52995082,148.13,148.08,22.52995082]
[1745360699835,25.3999715,148.15,148.08,22.52995082]
[1745360700050,22.52995082,148.13,148.08,22.52995082]
[1745360700758,18.64964886,148.15,148.05,30.9078702]
[1745360700949,26.0,148.15,148.05,30.9078702]
[1745360701138,26.0,148.15,148.12,22.52995082]
[1745360701665,26.0,148.15,148.11,22.52995082]
[1745360702236,0.063,148.16,148.12,22.52995082]
[1745360703059,6.8124707,148.16,148.11,22.52995082]
[1745360703438,0.063,148.16,148.12,22.52995082]
[1745360703635,0.063,148.16,148.14,22.52995082]
[1745360703946,0.063,148.16,148.09,26.0]
[1745360703947,0.063,148.16,148.15,22.52995082]
[1745360705645,0.063,148.16,148.14,22.52995082]
[1745360705848,26.0,148.14,148.05,1.6238]
[1745360706052,22.52995082,148.1,148.04,30.1206]
[1745360706445,18.64964886,148.13,148.05,22.52995082]
[1745360706767,22.52995082,148.11,148.06,22.52995082]
[1745360707736,22.52995082,148.11,148.04,30.1206]
[1745360707961,22.52995082,148.11,148.06,22.52995082]
[1745360708757,22.52995082,148.1,148.05,22.52995082]
[1745360709769,22.52995082,148.11,148.05,22.52995082]
[1745360709947,22.52995082,148.11,148.06,22.52995082]
[1745360711368,22.52995082,148.1,148.05,22.52995082]
[1745360711567,22.52995082,148.08,148.04,24.04]
[1745360711774,22.52995082,148.07,148.01,7.6943]
[1745360712072,22.52995082,148.05,148.0,22.52995082]
[1745360712573,22.52995082,148.05,147.99,22.52995082]
[1745360712872,22.52995082,148.05,148.0,22.52995082]
[1745360713450,22.52995082,148.05,147.99,22.52995082]
[1745360713667,22.52995082,148.04,147.98,22.52995082]
[1745360713859,22.52995082,148.03,147.97,22.52995082]
[1745360714060,22.52995082,148.01,147.96,34.29338284]
[1745360714261,22.52995082,147.98,147.96,34.29338284]
[1745360714767,22.52995082,147.99,147.96,34.29338284]
[1745360715461,22.52995082,147.98,147.96,34.29338284]
[1745360717671,29.28764677,147.98,147.96,34.29338284]
[1745360718373,22.52995082,147.97,147.95,0.03]
[1745360718570,22.52995082,147.96,147.95,0.03]
[1745360719766,6.75769595,147.98,147.95,0.03]
[1745360720078,22.52995082,147.96,147.95,0.03]
[1745360720266,18.64964886,147.98,147.95,0.03]
[1745360720472,22.52995082,147.97,147.95,0.03]
[1745360720668,18.64964886,147.98,147.95,0.03]
[1745360720971,48.52995082,147.99,147.95,0.03]
[1745360721171,55.2872145,147.99,147.95,0.03]
[1745360721376,22.52995082,147.98,147.95,0.03]
[1745360721560,22.52995082,147.97,147.95,0.03]
[1745360723671,22.52995082,147.96,147.95,0.03]
[1745360723982,25.40748856,147.98,147.95,0.03]
[1745360724182,18.64964886,147.97,147.95,0.03]
[1745360724370,22.52995082,147.96,147.95,0.03]
[1745360725578,22.52995082,147.97,147.95,0.03]
[1745360726579,29.28821942,147.97,147.95,0.03]
[1745360726781,22.52995082,147.97,147.95,0.03]
[1745360727386,41.17959968,147.98,147.95,0.03]
[1745360727684,22.52995082,147.98,147.95,0.03]
[1745360728384,22.52995082,147.97,147.95,0.03]
[1745360728892,22.52995082,147.96,147.95,0.03]
[1745360729071,22.52995082,147.97,147.95,0.03]
[1745360729272,22.52995082,147.96,147.95,0.03]
[1745360730293,22.52995082,147.97,147.95,0.03]
[1745360730474,22.52995082,147.96,147.95,0.03]
[1745360731288,20.82023732,147.97,147.95,0.03]
[1745360732284,14.06199614,147.97,147.95,0.03]
[1745360732491,20.82018981,147.97,147.95,0.03]
[1745360733497,32.711645,147.96,147.95,0.03]
[1745360733991,58.711645,147.96,147.95,0.03]
[1745360735293,65.4702284,147.96,147.95,0.03]
[1745360736701,6.75721332,147.99,147.95,0.03]
[1745360736909,26.0,147.98,147.95,0.03]
[1745360737071,40.06199614,147.98,147.95,0.03]
[1745360737678,26.0,147.98,147.95,0.03]
[1745360738084,40.06199614,147.98,147.95,0.03]
[1745360738277,20.81990382,147.98,147.95,0.03]
[1745360738700,14.06199614,147.98,147.95,0.03]
[1745360738994,20.81975325,147.98,147.95,0.03]
[1745360739198,20.81968613,147.98,147.95,0.03]
[1745360739505,14.06199614,147.97,147.95,0.03]
[1745360740500,26.0,147.99,147.95,14.09199614]
[1745360740683,32.75730337,147.99,147.95,0.03]
[1745360740874,32.75730337,147.99,147.95,14.09199614]
[1745360741208,46.81929951,147.99,147.95,0.03]
[1745360741376,32.75730337,147.99,147.95,0.03]
[1745360741776,46.81929951,147.99,147.95,0.03]
[1745360742076,14.06199614,147.98,147.95,0.03]
[1745360742393,32.75730337,147.99,147.95,0.03]
[1745360742394,46.81929951,147.99,147.95,0.03]
[1745360743582,32.75730337,147.99,147.95,14.09199614]
[1745360743999,6.75730337,147.99,147.95,14.09199614]
[1745360744196,6.75638729,148.01,147.96,14.06199614]
[1745360744501,20.81838343,148.01,147.96,14.06199614]
[1745360745291,39.46759818,148.02,147.97,14.06199614]
[1745360745674,14.06199614,148.01,147.96,14.06199614]
[1745360745881,39.46759818,148.02,147.96,14.06199614]
[1745360746386,46.81752945,148.03,147.98,14.06199614]
[1745360746684,32.75553331,148.03,147.99,14.06199614]
[1745360746896,32.75553331,148.03,147.95,0.03]
[1745360746897,46.81752945,148.03,147.95,0.03]
[1745360747085,32.75553331,148.03,147.95,0.03]
[1745360747388,46.81752945,148.03,147.98,14.06199614]
[1745360748087,14.06199614,147.99,147.95,0.03]
[1745360748288,14.06199614,147.98,147.95,0.03]
[1745360748604,14.06199614,147.97,147.95,0.03]
[1745360748984,14.06199614,147.98,147.95,0.03]
[1745360749184,14.06199614,147.97,147.95,0.03]
[1745360749607,20.82057954,147.96,147.95,0.03]
[1745360750001,6.7585834,147.96,147.95,0.03]
[1745360750312,20.82057954,147.96,147.95,0.03]
[1745360751691,14.06199614,147.97,147.95,0.03]
[1745360751894,20.81966609,147.98,147.95,0.03]
[1745360753799,6.75766995,147.98,147.95,0.03]
[1745360754002,14.06199614,147.96,147.95,0.03]
[1745360754310,14.06199614,147.97,147.95,0.03]
[1745360755991,20.82042983,147.97,147.95,0.03]
[1745360758488,6.75843369,147.97,147.95,0.03]
[1745360758806,20.82042983,147.97,147.95,0.03]
[1745360759013,14.06199614,147.96,147.95,0.03]
[1745360759392,20.82042983,147.97,147.95,0.03]
[1745360760415,14.06199614,147.96,147.95,0.03]
[1745360760605,32.711645,147.96,147.95,0.03]
[1745360761296,32.711645,147.96,147.94,1e-08]
[1745360761498,32.711645,147.95,147.94,1e-08]
[1745360761700,18.64964886,147.91,147.89,0.03]
[1745360761934,39.47297021,147.9,147.89,0.03]
[1745360762290,6.76132521,147.9,147.89,0.03]
[1745360762514,39.47268806,147.91,147.89,0.03]
[1745360762716,6.76054264,147.92,147.89,0.03]
[1745360762890,25.40972819,147.93,147.89,0.03]
[1745360763091,39.47172433,147.93,147.89,0.03]
[1745360763618,6.7596695,147.94,147.9,14.06199614]
[1745360764618,6.7596695,147.94,147.89,14.09199614]
[1745360764818,20.82166564,147.94,147.89,14.09199614]
[1745360765620,40.06199614,147.96,147.91,14.06199614]
[1745360765807,46.82064832,147.96,147.91,14.06199614]
[1745360766116,14.06199614,147.95,147.9,14.06199614]
[1745360766322,14.06199614,147.94,147.89,14.09199614]
[1745360767095,6.75956959,147.94,147.9,14.06199614]
[1745360767316,20.82156573,147.94,147.89,14.09199614]
[1745360767616,11.94114276,147.94,147.89,14.09199614]
[1745360767817,11.94114276,147.94,147.89,0.03]
[1745360768026,11.94114276,147.94,147.89,14.09199614]
[1745360768526,14.06199614,147.93,147.89,0.03]
[1745360768833,14.06199614,147.91,147.89,0.03]
[1745360769029,14.06199614,147.92,147.89,0.03]
[1745360769226,18.64964886,147.94,147.89,0.03]
[1745360769434,32.711645,147.95,147.89,14.09199614]
[1745360769613,14.06199614,147.94,147.89,14.09199614]
[1745360769809,14.06199614,147.94,147.89,0.03]
[1745360770621,25.40868907,147.95,147.89,0.03]
[1745360770823,14.06199614,147.94,147.89,0.03]
[1745360771112,14.06199614,147.92,147.89,0.03]
[1745360771312,14.06199614,147.9,147.89,0.03]
[1745360772117,58.711645,147.9,147.89,0.03]
[1745360772317,40.06199614,147.9,147.89,0.03]
[1745360773317,46.82332135,147.9,147.89,0.03]
[1745360774218,6.76100422,147.91,147.89,0.03]
[1745360775235,14.06199614,147.9,147.89,0.03]
[1745360775542,20.82332135,147.9,147.89,0.03]
[1745360775926,65.47297021,147.9,147.89,0.03]
[1745360776536,32.76132521,147.9,147.89,0.03]
[1745360776745,46.82332135,147.9,147.89,0.03]
[1745360777740,6.76098789,147.91,147.89,0.03]
[1745360777940,20.82298403,147.91,147.89,0.03]
[1745360778318,14.06199614,147.9,147.89,0.03]
[1745360779038,20.82298403,147.91,147.89,0.03]
[1745360781247,14.06199614,147.9,147.89,0.03]
[1745360782924,65.47297021,147.9,147.89,0.03]
[1745360785346,32.76041103,147.92,147.89,0.03]
[1745360785539,14.06199614,147.9,147.89,0.03]
[1745360786817,39.47297021,147.9,147.88,0.03]
[1745360787024,40.06199614,147.89,147.88,0.03]
[1745360787345,58.711645,147.89,147.88,0.03]
[1745360787721,64.17160439,147.89,147.88,0.03]
[1745360788445,58.711645,147.89,147.88,0.03]
[1745360788959,65.4734274,147.89,147.88,0.03]
[1745360789441,78.91550049,147.89,147.88,1e-08]
[1745360789744,78.91550049,147.89,147.86,0.03]
[1745360789745,18.64964886,147.88,147.86,0.03]
[1745360789945,58.711645,147.87,147.86,0.03]
[1745360791030,65.47434196,147.87,147.86,0.03]
[1745360792743,14.06199614,147.87,147.86,0.03]
[1745360792946,32.711645,147.87,147.86,0.03]
[1745360793125,39.47434196,147.87,147.86,0.03]
[1745360794445,20.8246931,147.87,147.86,0.03]
[1745360796443,25.41205822,147.88,147.86,0.03]
[1745360796672,14.06199614,147.87,147.86,0.03]
[1745360797360,32.76181652,147.89,147.86,0.03]
[1745360797658,46.82381266,147.89,147.86,0.03]
[1745360798449,14.06199614,147.87,147.86,0.03]
[1745360799360,20.8246931,147.87,147.86,0.03]
[1745360799558,14.06199614,147.87,147.86,0.03]
[1745360799743,20.82441439,147.88,147.86,0.03]
[1745360800231,16.8963132,147.97,147.87,14.06199614]
[1745360800435,14.06199614,147.95,147.9,14.06199614]
[1745360800738,40.06199614,147.95,147.89,14.06199614]
[1745360801044,40.12499614,147.95,147.89,14.06199614]
[1745360801432,0.063,147.95,147.91,14.06199614]
[1745360803550,0.063,147.95,147.86,8.35014858]
[1745360803728,0.063,147.95,147.91,14.06199614]
[1745360804459,0.063,147.95,147.92,14.06199614]
[1745360804761,14.12499614,147.95,147.9,14.06199614]
[1745360804946,0.063,147.95,147.9,14.06199614]
[1745360805128,0.063,147.95,147.91,14.06199614]
[1745360806355,14.12499614,147.95,147.86,1.5871]
[1745360806540,14.12499614,147.95,147.89,14.06199614]
[1745360806855,14.12499614,147.95,147.9,14.06199614]
[1745360807767,20.88407939,147.95,147.9,14.06199614]
[1745360807967,6.82208325,147.95,147.9,14.06199614]
[1745360808262,20.88407939,147.95,147.9,14.06199614]
[1745360810856,14.06199614,147.92,147.86,1.5871]
[1745360811060,14.06199614,147.91,147.86,15.64909614]
[1745360811266,14.06199614,147.92,147.87,16.50068773]
[1745360811953,14.06199614,147.88,147.87,2.43869159]
[1745360812134,32.711645,147.88,147.87,2.43869159]
[1745360812339,18.64964886,147.87,147.86,0.03]
[1745360812651,32.711645,147.87,147.86,0.03]
[1745360813244,39.47434196,147.87,147.86,0.03]
[1745360815863,26.0,147.88,147.86,0.03]
[1745360815864,46.82439337,147.88,147.86,0.03]
[1745360816043,14.06199614,147.87,147.86,0.03]
[1745360816874,32.76239723,147.88,147.86,0.03]
[1745360817079,14.06199614,147.87,147.86,0.03]
[1745360817756,20.8246931,147.87,147.86,0.03]
[1745360820250,39.47434196,147.87,147.86,0.03]
[1745360821466,14.06199614,147.87,147.86,0.03]
[1745360821974,20.8246931,147.87,147.86,0.03]
[1745360822268,39.47434196,147.87,147.86,0.03]
[1745360825474,35.46336645,147.92,147.86,0.03]
[1745360825475,6.75949709,147.94,147.86,14.09199614]
[1745360825658,46.82149323,147.94,147.88,14.06199614]
[1745360825860,20.82149323,147.94,147.89,14.06199614]
[1745360826077,0.063,147.94,147.9,14.06199614]
[1745360826581,14.12499614,147.94,147.88,14.06199614]
[1745360826751,14.12499614,147.94,147.89,14.06199614]
[1745360826949,0.063,147.94,147.89,14.06199614]
[1745360827465,14.12499614,147.94,147.89,14.06199614]
[1745360827968,20.88461101,147.94,147.89,14.06199614]
[1745360828166,0.063,147.94,147.9,14.06199614]
[1745360828371,6.82257831,147.94,147.9,14.06199614]
[1745360828857,20.88457445,147.94,147.89,14.06199614]
[1745360829172,0.063,147.94,147.9,14.06199614]
[1745360829367,0.063,147.94,147.91,14.06199614]
[1745360829581,0.063,147.94,147.92,14.06199614]
[1745360829877,0.063,147.94,147.91,14.06199614]
[1745360830069,0.063,147.94,147.9,14.06199614]
[1745360830266,14.06199614,147.93,147.88,14.06199614]
[1745360830682,14.12499614,147.94,147.88,14.06199614]
[1745360831457,14.12499614,147.94,147.89,14.06199614]
[1745360831673,0.063,147.94,147.89,14.06199614]
[1745360834397,0.063,147.94,147.9,14.06199614]
[1745360834686,14.12499614,147.94,147.89,14.06199614]
[1745360834876,14.06199614,147.93,147.88,14.06199614]
[1745360835063,20.82211526,147.93,147.88,14.06199614]
[1745360835566,20.88462269,147.94,147.88,14.06199614]
[1745360835763,14.06199614,147.93,147.86,0.03]
[1745360835963,14.06199614,147.93,147.88,14.06199614]
[1745360836372,20.88462269,147.94,147.89,14.06199614]
[1745360836973,20.88462269,147.94,147.88,14.06199614]
[1745360837393,14.06199614,147.93,147.86,0.03]
[1745360837685,14.06199614,147.93,147.88,14.06199614]
[1745360838789,20.88462269,147.94,147.88,14.06199614]
[1745360838985,20.88462269,147.94,147.89,14.06199614]
[1745360839284,20.88462269,147.94,147.88,14.06199614]
[1745360841188,20.88462269,147.94,147.89,14.06199614]
[1745360841770,0.063,147.94,147.89,14.06199614]
[1745360842297,6.82255998,147.94,147.89,14.06199614]
[1745360842793,0.063,147.94,147.9,14.06199614]
[1745360842974,0.063,147.94,147.91,14.06199614]
[1745360843286,0.063,147.94,147.9,14.06199614]
[1745360844190,0.063,147.94,147.91,14.06199614]
[1745360844372,0.063,147.94,147.9,14.06199614]
[1745360845080,14.12499614,147.94,147.89,14.06199614]
[1745360845285,20.82195017,147.93,147.86,23.49]
[1745360845477,14.06199614,147.92,147.87,14.06199614]
[1745360847493,20.82247564,147.92,147.87,14.06199614]
[1745360848094,20.82247564,147.92,147.86,23.49]
[1745360848293,20.82247564,147.92,147.87,14.06199614]
[1745360848686,14.06199614,147.9,147.86,23.49]
[1745360848996,14.06199614,147.89,147.86,0.03]
[1745360849178,14.06199614,147.91,147.86,14.09199614]
[1745360849696,20.82290437,147.91,147.86,14.09199614]
[1745360849870,14.06199614,147.91,147.86,14.09199614]